fUST/lending_fUST_20250722
["ID","MTS","AMOUNT","RATE_DAILY","PERIOD"]
[374001975,1753176644738,-876.26,0.00019881,2]
[374001976,1753176644750,-460.0,0.00019884,2]
[374001978,1753176644761,-35850.79696441,0.0002,2]
[374001980,1753176644772,-72599.65487824,0.0002,2]
[374001982,1753176644783,-151.0,0.0002,2]
[374001984,1753176644794,-154.354293,0.0002,2]
[374002000,1753176644945,-3669.78004842,0.00020107,2]
[374002002,1753176644964,-587.0,0.00020121,2]
[374002004,1753176644974,-317.0,0.00020121,2]
[374002006,1753176644983,-1513.04,0.00020152,2]
[374002008,1753176644993,-460.0,0.00020152,2]
[374002010,1753176645002,-1010.1,0.00020152,2]
[374002012,1753176645011,-460.0,0.00020152,2]
[374002014,1753176645021,-555.66,0.00020152,2]
[374002016,1753176645031,-460.0,0.00020152,2]
[374002018,1753176645040,-1726.91,0.00020152,2]
[374002020,1753176645050,-460.0,0.00020152,2]
[374002022,1753176645059,-460.0,0.00020152,2]
[374002024,1753176645070,-724.58,0.00020152,2]
[374002026,1753176645079,-460.0,0.00020153,2]
[374002028,1753176645089,-714.26,0.00020153,2]
[374002030,1753176645099,-460.0,0.00020153,2]
[374002032,1753176645108,-487.96,0.00020153,2]
[374002034,1753176645122,-460.0,0.00020153,2]
[374002036,1753176645131,-1016.29,0.00020153,2]
[374002038,1753176645141,-927.02,0.00020154,2]
[374002040,1753176645151,-516.0,0.00020155,2]
[374002042,1753176645160,-2760.84,0.00020155,2]
[374002044,1753176645169,-876.26,0.00020155,2]
[374002046,1753176645179,-325.87,0.00020158,2]
[374002048,1753176645188,-180.0,0.00020192,2]
[374002050,1753176645198,-500.0,0.00020223,2]
[374002051,1753176645207,-512.46627473,0.00020223,2]
[374002053,1753176645217,-500.0,0.0002026,2]
[374002056,1753176645227,-3669.78004842,0.00020383,3]
[374002059,1753176645236,-570.9949222,0.000204,2]
[374002061,1753176645246,-1513.04,0.00020426,2]
[374002063,1753176645255,-460.0,0.00020426,2]
[374002065,1753176645265,-1010.1,0.00020426,2]
[374002067,1753176645274,-460.0,0.00020426,2]
[374002069,1753176645284,-555.66,0.00020426,2]
[374002071,1753176645293,-460.0,0.00020426,2]
[374002073,1753176645303,-1726.91,0.00020426,2]
[374002075,1753176645313,-460.0,0.00020426,2]
[374002077,1753176645323,-460.0,0.00020426,2]
[374002079,1753176645333,-724.58,0.00020426,2]
[374002081,1753176645343,-460.0,0.00020427,2]
[374002083,1753176645352,-714.26,0.00020427,2]
[374002085,1753176645365,-460.0,0.00020427,2]
[374002087,1753176645375,-487.96,0.00020427,2]
[374002089,1753176645384,-460.0,0.00020427,2]
[374002091,1753176645394,-1016.29,0.00020427,2]
[374002092,1753176645404,-927.02,0.00020428,2]
[374002094,1753176645414,-516.0,0.00020429,2]
[374002096,1753176645424,-2760.84,0.00020429,2]
[374002098,1753176645434,-876.26,0.00020429,2]
[374002100,1753176645444,-12619.94447631,0.00020659,3]
[374002102,1753176645454,-3669.78004842,0.00020659,3]
[374002104,1753176645463,-151.0,0.00020659,2]
[374002106,1753176645474,-151.0,0.00020659,2]
[374002108,1753176645483,-476.60259688,0.0002066,3]
[374002110,1753176645493,-160.0,0.0002066,3]
[374002112,1753176645503,-214.6393183,0.0002066,3]
[374002114,1753176645512,-151.0,0.000207,2]
[374002116,1753176645521,-151.0,0.000207,2]
[374002118,1753176645531,-151.0,0.000207,2]
[374002120,1753176645541,-151.0,0.000207,2]
[374002122,1753176645551,-1513.04,0.000207,2]
[374002124,1753176645561,-151.465729,0.000207,2]
[374002126,1753176645570,-460.0,0.000207,2]
[374002128,1753176645580,-1010.1,0.000207,2]
[374002130,1753176645590,-151.492355,0.000207,2]
[374002132,1753176645600,-460.0,0.000207,2]
[374002134,1753176645610,-555.66,0.000207,2]
[374002136,1753176645629,-151.0,0.000207,2]
[374002138,1753176645638,-460.0,0.000207,2]
[374002140,1753176645648,-1726.91,0.000207,2]
[374002142,1753176645658,-460.0,0.000207,2]
[374002144,1753176645667,-460.0,0.000207,2]
[374002146,1753176645676,-151.0,0.000207,2]
[374002148,1753176645686,-724.58,0.000207,2]
[374002150,1753176645695,-460.0,0.00020701,2]
[374002152,1753176645704,-714.26,0.00020701,2]
[374002154,1753176645714,-460.0,0.00020701,2]
[374002156,1753176645723,-487.96,0.00020701,2]
[374002158,1753176645732,-460.0,0.00020701,2]
[374002160,1753176645741,-1016.29,0.00020701,2]
[374002162,1753176645751,-927.02,0.00020702,2]
[374002164,1753176645760,-516.0,0.00020703,2]
[374002166,1753176645770,-2760.84,0.00020703,2]
[374002168,1753176645779,-876.26,0.00020703,2]
[374002170,1753176645788,-151.0,0.00020703,2]
[374002172,1753176645797,-151.0,0.00020703,2]
[374002174,1753176645807,-151.0,0.00020703,2]
[374002176,1753176645817,-172.927636,0.00020703,2]
[374002177,1753176645828,-151.0,0.00020703,2]
[374002179,1753176645838,-151.0,0.00020703,2]
[374002181,1753176645847,-151.0,0.00020703,2]
[374002183,1753176645856,-151.0,0.00020703,2]
[374002185,1753176645871,-151.0,0.00020703,2]
[374002187,1753176645881,-151.0,0.00020703,2]
[374002189,1753176645890,-178.80003706,0.00020724,2]
[374002191,1753176645900,-996.992,0.00020724,2]
[374002193,1753176645910,-500.0,0.00020771,2]
[374002195,1753176645920,-1000.0,0.00020808,2]
[374002197,1753176645930,-3669.78004842,0.00020934,4]
[374002199,1753176645939,-500.17276481,0.00020967,2]
[374002201,1753176645949,-1513.04,0.00020974,2]
[374002203,1753176645958,-299.43,0.00020974,2]
[374002205,1753176645968,-1010.1,0.00020974,2]
[374002207,1753176645978,-460.0,0.00020974,2]
[374002209,1753176645988,-555.66,0.00020974,2]
[374002211,1753176645997,-460.0,0.00020974,2]
[374002213,1753176646007,-1726.91,0.00020974,2]
[374002215,1753176646016,-460.0,0.00020974,2]
[374002217,1753176646026,-460.0,0.00020974,2]
[374002219,1753176646036,-724.58,0.00020974,2]
[374002221,1753176646045,-460.0,0.00020975,2]
[374002223,1753176646055,-714.26,0.00020975,2]
[374002225,1753176646064,-460.0,0.00020975,2]
[374002227,1753176646074,-487.96,0.00020975,2]
[374002229,1753176646083,-460.0,0.00020975,2]
[374002231,1753176646094,-1016.29,0.00020975,2]
[374002233,1753176646103,-516.0,0.00020976,2]
[374002235,1753176646115,-2760.84,0.00020976,2]
[374002237,1753176646125,-876.26,0.00020976,2]
[374002239,1753176646134,-927.02,0.00020976,2]
[374002241,1753176646143,-982.07715564,0.00021019,2]
[374002243,1753176646153,-3669.78004842,0.0002121,4]
[374002245,1753176646163,-1513.04,0.00021248,2]
[374002247,1753176646173,-1010.1,0.00021248,2]
[374002249,1753176646182,-460.0,0.00021248,2]
[374002251,1753176646192,-555.66,0.00021248,2]
[374002253,1753176646202,-460.0,0.00021248,2]
[374002255,1753176646212,-1726.91,0.00021248,2]
[374002257,1753176646222,-339.39422202,0.00021248,2]
[374002259,1753176646231,-460.0,0.00021248,2]
[374002261,1753176646241,-724.58,0.00021248,2]
[374002263,1753176646251,-154.65473086,0.00021249,2]
[374002265,1753176646261,-714.26,0.00021249,2]
[374002267,1753176646270,-460.0,0.00021249,2]
[374002269,1753176646282,-487.96,0.00021249,2]
[374002271,1753176646292,-460.0,0.00021249,2]
[374002273,1753176646302,-1016.29,0.00021249,2]
[374002275,1753176646312,-516.0,0.0002125,2]
[374002277,1753176646322,-2760.84,0.0002125,2]
[374002279,1753176646333,-876.26,0.0002125,2]
[374002281,1753176646343,-1013.36135234,0.00021356,2]
[374002283,1753176646353,-160.18,0.00021476,2]
[374002285,1753176646365,-11849.55841009,0.00021478,2]
[374002287,1753176646374,-151.0,0.00021486,2]
[374002288,1753176646384,-151.0,0.00021486,2]
[374002289,1753176646393,-151.422836,0.00021486,2]
[374002290,1753176646403,-151.944203,0.00021486,2]
[374002291,1753176646412,-151.944203,0.00021486,2]
[374002292,1753176646423,-3669.78004842,0.00021486,5]
[374002293,1753176646433,-1513.04,0.00021522,2]
[374002294,1753176646442,-1010.1,0.00021522,2]
[374002295,1753176646452,-460.0,0.00021522,2]
[374002296,1753176646462,-555.66,0.00021522,2]
[374002297,1753176646472,-460.0,0.00021522,2]
[374002298,1753176646482,-1726.91,0.00021522,2]
[374002299,1753176646491,-458.54,0.00021522,2]
[374002300,1753176646500,-724.58,0.00021522,2]
[374002301,1753176646510,-714.26,0.00021523,2]
[374002302,1753176646519,-494.13,0.00021523,2]
[374002303,1753176646529,-487.96,0.00021523,2]
[374002304,1753176646538,-460.0,0.00021523,2]
[374002305,1753176646547,-1016.29,0.00021523,2]
[374002306,1753176646557,-516.0,0.00021524,2]
[374002307,1753176646566,-151.0,0.00021524,2]
[374002308,1753176646575,-2760.84,0.00021524,2]
[374002309,1753176646584,-876.26,0.00021524,2]
[374002310,1753176646593,-9042.199595,0.00021524,2]
[374002311,1753176646603,-9042.199595,0.00021524,2]
[374002312,1753176646616,-298.640799,0.00021524,2]
[374002313,1753176646625,-877.72466876,0.00021739,2]
[374002314,1753176646635,-3669.78004842,0.00021762,5]
[374002315,1753176646644,-1513.04,0.00021796,2]
[374002316,1753176646653,-1010.1,0.00021796,2]
[374002317,1753176646662,-183.91630104,0.00021796,2]
[374002318,1753176646671,-555.66,0.00021796,2]
[374002320,1753176646680,-460.0,0.00021796,2]
[374002322,1753176646690,-1726.91,0.00021796,2]
[374002324,1753176646699,-724.58,0.00021796,2]
[374002326,1753176646710,-714.26,0.00021797,2]
[374002328,1753176646719,-487.96,0.00021797,2]
[374002330,1753176646728,-160.0976356,0.00021797,2]
[374002332,1753176646738,-1016.29,0.00021797,2]
[374002334,1753176646747,-516.0,0.00021798,2]
[374002336,1753176646757,-2760.84,0.00021798,2]
[374002338,1753176646766,-876.26,0.00021798,2]
[374002340,1753176646775,-800.0,0.00021892,2]
[374002342,1753176646784,-1138.85179789,0.00021916,2]
[374002344,1753176646793,-151.0,0.00021918,2]
[374002346,1753176646803,-151.0,0.00021918,2]
[374002348,1753176646812,-179.58591415,0.00021918,2]
[374002350,1753176646823,-215.0738,0.00021965,2]
[374002351,1753176646834,-151.0,0.00021965,2]
[374002353,1753176646843,-823.0,0.0002198,2]
[374002355,1753176646852,-2290.87,0.00022,7]
[374002357,1753176646865,-7908.98,0.00022,7]
[374002360,1753176646875,-4524.07,0.00022,7]
[374002362,1753176646885,-151.0,0.00022,7]
[374002364,1753176646894,-178.0,0.00022,2]
[374002366,1753176646905,-168.0,0.00022,2]
[374002368,1753176646915,-151.0,0.00022,7]
[374002369,1753176646924,-476.60259688,0.00022,7]
[374002372,1753176646934,-160.0,0.00022,7]
[374002373,1753176646943,-151.0,0.00022,7]
[374002375,1753176646952,-151.0,0.00022,7]
[374002377,1753176646961,-214.6393183,0.00022,7]
[374002379,1753176646971,-378.0,0.00022,2]
[374002381,1753176646981,-3669.78004842,0.00022038,6]
[374002383,1753176646990,-151.0,0.00022038,7]
[374002385,1753176646999,-151.0,0.0002207,7]
[374002387,1753176647009,-151.0,0.0002207,7]
[374002389,1753176647019,-1513.04,0.0002207,2]
[374002391,1753176647029,-151.0,0.0002207,7]
[374002393,1753176647038,-151.0,0.0002207,7]
[374002395,1753176647048,-151.0,0.0002207,7]
[374002397,1753176647057,-1010.1,0.0002207,2]
[374002399,1753176647067,-555.66,0.0002207,2]
[374002401,1753176647077,-460.0,0.0002207,2]
[374002403,1753176647086,-1726.91,0.0002207,2]
[374002405,1753176647096,-724.58,0.0002207,2]
[374002407,1753176647105,-151.0,0.00022071,7]
[374002409,1753176647118,-151.0,0.00022071,7]
[374002411,1753176647128,-151.0,0.00022071,7]
[374002414,1753176647137,-714.26,0.00022071,2]
[374002415,1753176647147,-487.96,0.00022071,2]
[374002418,1753176647159,-1016.29,0.00022071,2]
[374002419,1753176647171,-516.0,0.00022072,2]
[374002422,1753176647182,-2760.84,0.00022072,2]
[374002424,1753176647192,-876.26,0.00022072,2]
[374002426,1753176647201,-151.0,0.00022072,7]
[374002428,1753176647210,-154.603585,0.00022072,7]
[374002430,1753176647220,-378.0,0.00022192,7]
[374002431,1753176647230,-454.11957381,0.00022282,2]
[374002434,1753176647240,-3669.78004842,0.00022314,7]
[374002436,1753176647249,-1513.04,0.00022344,2]
[374002437,1753176647258,-1010.1,0.00022344,2]
[374002440,1753176647268,-555.66,0.00022344,2]
[374002442,1753176647277,-460.0,0.00022344,2]
[374002444,1753176647287,-1726.91,0.00022344,2]
[374002445,1753176647297,-724.58,0.00022344,2]
[374002447,1753176647306,-714.26,0.00022345,2]
[374002449,1753176647316,-487.96,0.00022345,2]
[374002451,1753176647326,-1016.29,0.00022345,2]
[374002453,1753176647335,-516.0,0.00022346,2]
[374002455,1753176647344,-2760.84,0.00022346,2]
[374002457,1753176647354,-876.26,0.00022346,2]
[374002459,1753176647365,-151.0,0.000224,6]
[374002461,1753176647374,-151.0,0.00022452,5]
[374002463,1753176647385,-982.07715564,0.00022459,2]
[374002465,1753176647394,-2992.0,0.00022465,2]
[374002467,1753176647403,-1592.85,0.00022539,6]
[374002469,1753176647413,-1226.62211392,0.00022557,2]
[374002471,1753176647423,-3669.78004842,0.0002259,7]
[374002473,1753176647433,-249.385251,0.00022603,2]
[374002475,1753176647443,-1513.04,0.00022618,2]
[374002477,1753176647452,-1010.1,0.00022618,2]
[374002480,1753176647462,-555.66,0.00022618,2]
[374002481,1753176647472,-460.0,0.00022618,2]
[374002483,1753176647481,-1726.91,0.00022618,2]
[374002485,1753176647491,-724.58,0.00022618,2]
[374002486,1753176647500,-714.26,0.00022619,2]
[374002487,1753176647510,-487.96,0.00022619,2]
[374002488,1753176647519,-1016.29,0.00022619,2]
[374002489,1753176647529,-516.0,0.0002262,2]
[374002490,1753176647538,-2760.84,0.0002262,2]
[374002491,1753176647548,-876.26,0.0002262,2]
[374002492,1753176647557,-1137.75,0.00022724,7]
[374002493,1753176647567,-168.0,0.00022754,2]
[374002494,1753176647576,-1000.0,0.000228,2]
[374002495,1753176647585,-1137.75,0.00022824,7]
[374002496,1753176647595,-3669.78004842,0.00022866,8]
[374002497,1753176647604,-1513.04,0.00022892,2]
[374002498,1753176647615,-1010.1,0.00022892,2]
[374002499,1753176647626,-555.66,0.00022892,2]
[374002500,1753176647636,-460.0,0.00022892,2]
[374002501,1753176647646,-1726.91,0.00022892,2]
[374002502,1753176647655,-724.58,0.00022892,2]
[374002503,1753176647665,-714.26,0.00022893,2]
[374002504,1753176647674,-487.96,0.00022893,2]
[374002505,1753176647684,-1016.29,0.00022893,2]
[374002506,1753176647694,-516.0,0.00022894,2]
[374002507,1753176647704,-2760.84,0.00022894,2]
[374002508,1753176647714,-876.26,0.00022894,2]
[374002509,1753176647724,-1137.75,0.00022924,2]
[374002510,1753176647734,-67850.91137018,0.00022929,2]
[374002513,1753176647821,-75749.67877699,0.00022929,2]
[374002526,1753176647944,-1107.92235581,0.00022929,2]
[374002528,1753176647956,-85060.10247612,0.00022929,2]
[374002531,1753176647967,-151.0,0.00022942,6]
[374002533,1753176647977,-500.0,0.00022973,2]
[374002534,1753176647987,-1934.35,0.00023,2]
[374002535,1753176647995,-31264.54752388,0.00023,2]
[374002536,1753176648065,-310.2,0.00016864,2]
[374002537,1753176648075,-226.8600867,0.0001851,2]
[374002538,1753176648088,-233.1399133,0.0001851,2]
[374002539,1753176648098,-460.0,0.00018784,2]
[374002540,1753176648108,-460.0,0.00019058,2]
[374002541,1753176648120,-1118.29,0.0001988,2]
[374002542,1753176648129,-1118.29,0.00020154,2]
[374002543,1753176648139,-1118.29,0.00020428,2]
[374002544,1753176648148,-1118.29,0.00020702,2]
[374002545,1753176648158,-34177.03247612,0.00023,2]
[374002546,1753176648168,-151.0,0.00023,7]
[374002547,1753176648177,-151.0,0.00023,7]
[374002548,1753176648187,-151.0,0.00023,7]
[374002549,1753176648197,-151.0,0.00023,7]
[374002550,1753176648208,-9042.199595,0.00023,7]
[374002551,1753176648221,-9042.199595,0.00023,7]
[374002552,1753176648234,-151.0,0.00023,7]
[374002553,1753176648244,-151.944203,0.00023,7]
[374002554,1753176648255,-151.944203,0.00023,7]
[374002555,1753176648265,-151.0,0.00023,7]
[374002556,1753176648275,-160.0,0.00023,2]
[374002557,1753176648286,-215.80012421,0.00023,3]
[374002558,1753176648296,-526.07605158,0.00023,3]
[374002559,1753176648305,-160.0,0.00023,3]
[374002560,1753176648315,-160.0,0.00023,3]
[374002561,1753176648325,-151.0,0.00023,7]
[374002562,1753176648335,-160.0,0.00023,3]
[374002563,1753176648345,-151.0,0.00023,7]
[374002564,1753176648355,-164.443916,0.00023,7]
[374002565,1753176648367,-151.0,0.00023,7]
[374002566,1753176648378,-154.05177,0.00023,7]
[374002567,1753176648387,-231.06963584,0.00023,3]
[374002568,1753176648397,-264.73057,0.00023,7]
[374002569,1753176648407,-1965.17990156,0.00023,2]
[374002570,1753176648417,-151.0,0.00023,7]
[374002571,1753176648427,-839.90542673,0.00023,3]
[374002572,1753176648437,-733.71875676,0.00023,10]
[374002573,1753176648447,-346.60986435,0.00023,2]
[374002574,1753176648457,-8234.17116484,0.00023,10]
[374002575,1753176648469,-4202.08710663,0.00023,10]
[374002576,1753176648482,-67909.1621714,0.00023,10]
[374002577,1753176648492,-1336.14095833,0.00023,2]
[374002578,1753176648503,-151.0,0.00023,7]
[374002579,1753176648513,-214.6393183,0.00023,10]
[374002580,1753176648522,-160.0,0.00023,3]
[374002581,1753176648532,-378.0,0.00023014,7]
[374002582,1753176648542,-1137.75,0.00023024,2]
[374002583,1753176648552,-417.608,0.00023074,2]
[374002584,1753176648561,-733.311,0.00023074,2]
[374002585,1753176648571,-7908.98,0.000231,7]
[374002586,1753176648580,-1137.75,0.00023124,3]
[374002587,1753176648589,-2875.92563375,0.00023141,8]
[374002588,1753176648602,-793.85441467,0.00023141,8]
[374002589,1753176648614,-180.22953318,0.00023166,2]
[374002590,1753176648668,-460.0,0.00019332,2]
[374002591,1753176648677,-288.246198,0.00019606,2]
[374002592,1753176648694,-171.753802,0.00019606,2]
[374002593,1753176648704,-593.33,0.0001988,2]
[374002594,1753176648714,-1118.29,0.00020976,2]
[374002595,1753176648724,-1118.29,0.0002125,2]
[374002596,1753176648734,-1118.29,0.00021524,2]
[374002597,1753176648744,-1118.29,0.00021798,2]
[374002598,1753176648753,-1.66006276,0.00023166,2]
[374002599,1753176648766,-1331.19626387,0.00023166,2]
[374002600,1753176648776,-1010.33478129,0.00023166,2]
[374002601,1753176648786,-555.69,0.00023166,2]
[374002602,1753176648796,-353.09331493,0.00023166,2]
[374002603,1753176648806,-1727.08321889,0.00023166,2]
[374002604,1753176648816,-724.6,0.00023166,2]
[374002605,1753176648829,-714.31747471,0.00023167,2]
[374002606,1753176648838,-488.03821765,0.00023167,2]
[374002607,1753176648848,-1016.34534961,0.00023167,2]
[374002608,1753176648858,-516.04,0.00023168,2]
[374002609,1753176648872,-2760.92,0.00023168,2]
[374002610,1753176648882,-876.42056461,0.00023168,2]
[374002611,1753176648892,-161.408051,0.00023182,2]
[374002612,1753176648902,-2290.87,0.000232,7]
[374002613,1753176648913,-4524.07,0.000232,7]
[374002614,1753176648923,-161.83540056,0.00023205,2]
[374002615,1753176648932,-2200.0,0.00023213,2]
[374002616,1753176648942,-1137.75,0.00023224,4]
[374002617,1753176648952,-176.0,0.00023315,9]
[374002618,1753176648961,-1137.75,0.00023324,6]
[374002619,1753176648971,-223.0315306,0.00023334,2]
[374002620,1753176648981,-858.9029184,0.00023342,2]
[374002621,1753176648991,-429.6101251,0.00023342,2]
[374002622,1753176649001,-429.6101251,0.00023342,2]
[374002623,1753176649010,-429.6101251,0.00023342,2]
[374002624,1753176649020,-429.6101251,0.00023342,2]
[374002625,1753176649030,-428.8167956,0.00023342,2]
[374002626,1753176649040,-429.6101251,0.00023342,2]
[374002627,1753176649051,-429.6101251,0.00023342,2]
[374002628,1753176649061,-3669.78004842,0.00023417,9]
[374002629,1753176649071,-1137.75,0.00023424,3]
[374002630,1753176649081,-151.0,0.00023431,6]
[374002631,1753176649092,-168.0,0.00023456,2]
[374002632,1753176649102,-150.467,0.00023488,2]
[374002633,1753176649112,-164.00619825,0.00023507,2]
[374002634,1753176649126,-161.83540056,0.00023507,2]
[374002635,1753176649136,-1137.75,0.00023524,2]
[374002636,1753176649147,-154.473695,0.00023575,2]
[374002637,1753176649157,-1837.83358291,0.00023616,2]
[374002638,1753176649168,-577.4526085,0.00023616,2]
[374002639,1753176649178,-159.8957685,0.00023616,2]
[374002640,1753176649189,-577.4526085,0.00023616,2]
[374002641,1753176649199,-577.4526085,0.00023616,2]
[374002642,1753176649209,-577.4526085,0.00023616,2]
[374002643,1753176649219,-1137.75,0.00023624,5]
[374002644,1753176649230,-3279.64865524,0.00023691,2]
[374002645,1753176649240,-3669.78004842,0.00023693,9]
[374002646,1753176649250,-500.0,0.00023721,2]
[374002647,1753176649260,-151.0,0.00023721,2]
[374002648,1753176649270,-151.0,0.00023721,2]
[374002649,1753176649280,-151.0,0.00023721,2]
[374002650,1753176649290,-151.29090605,0.00023721,2]
[374002651,1753176649300,-151.0,0.00023721,2]
[374002652,1753176649310,-500.0,0.00023721,2]
[374002653,1753176649319,-240.19374512,0.00023721,2]
[374002654,1753176649330,-151.0,0.00023721,2]
[374002655,1753176649340,-151.0,0.00023721,2]
[374002656,1753176649350,-1137.75,0.00023724,4]
[374002657,1753176649360,-358.0,0.00023766,2]
[374002658,1753176649379,-150.0,0.00023785,2]
[374002659,1753176649389,-1137.75,0.00023824,2]
[374002660,1753176649400,-500.0,0.00023873,2]
[374002661,1753176649411,-32089.56110003,0.00023888,2]
[374002662,1753176649425,-8481.38918797,0.00023888,2]
[374002663,1753176649734,-429.6101251,0.00023342,2]
[374002664,1753176649743,-1475.71313803,0.00023888,2]
[374002671,1753176649835,-460.0,0.00016864,2]
[374002673,1753176649844,-460.0,0.00017138,2]
[374002675,1753176649854,-460.0,0.00017412,2]
[374002677,1753176649868,-460.0,0.00017686,2]
[374002679,1753176649878,-1118.29,0.00022072,2]
[374002681,1753176649887,-1118.29,0.00022346,2]
[374002683,1753176649898,-1118.29,0.0002262,2]
[374002685,1753176649908,-1118.29,0.00022894,2]
[374002687,1753176649917,-6030.22328872,0.00023888,2]
[374002689,1753176649929,-611.0,0.00023888,2]
[374002691,1753176649940,-6108.5604731,0.00023888,2]
[374002694,1753176649952,-1793.91702006,0.00023888,2]
[374002696,1753176649963,-7543.66845612,0.00023888,2]
[374002698,1753176649974,-292.90480243,0.00023888,2]
[374002700,1753176649985,-3708.0603511,0.00023888,2]
[374003972,1753176693694,150.0,0.00014032,2]
[374003973,1753176694096,150.0,0.00015308,2]
[374003974,1753176694625,150.0,0.00016584,2]
[374003976,1753176760566,150.0,0.00013587,2]
[374003977,1753176761018,150.0,0.00014822,2]
[374003978,1753176812406,938.4026128,0.00016169,2]
[374003980,1753176966416,161.408051,0.00013699,2]
[374004039,1753177832043,-300.0,0.00016861,2]
[374004041,1753177832055,-198.43,0.00016861,2]
[374004043,1753177832065,-300.0,0.00016861,2]
[374004045,1753177832074,-300.0,0.00016861,2]
[374004047,1753177832084,-460.0,0.00016861,2]
[374004048,1753177832095,-460.0,0.00016861,2]
[374004050,1753177832104,-442.4814034,0.00016861,2]
[374004052,1753177832113,-460.0,0.00016862,2]
[374004054,1753177832122,-460.0,0.00016862,2]
[374004055,1753177832133,-460.0,0.00016862,2]
[374004057,1753177832148,-15.36511306,0.00016862,2]
[374004060,1753177832164,-444.63488694,0.00016862,2]
[374004062,1753177832173,-460.0,0.00016862,2]
[374004064,1753177832184,-500.40777051,0.00016862,2]
[374004067,1753177832193,-460.0,0.00016862,2]
[374004071,1753177832203,-460.0,0.00016862,2]
[374004073,1753177832214,-460.0,0.00016862,2]
[374004076,1753177832223,-460.0,0.00016862,2]
[374004079,1753177832233,-460.0,0.00016862,2]
[374004081,1753177832242,-460.0,0.00016862,2]
[374004083,1753177832251,-460.0,0.00016862,2]
[374004085,1753177832261,-460.0,0.00016862,2]
[374004087,1753177832270,-460.0,0.00016862,2]
[374004088,1753177832279,-470.38205395,0.00016862,2]
[374004090,1753177832290,-460.0,0.00016862,2]
[374004092,1753177832301,-460.0,0.00016862,2]
[374004094,1753177832311,-460.0,0.00016862,2]
[374004096,1753177832320,-460.0,0.00016862,2]
[374004098,1753177832330,-460.0,0.00016862,2]
[374004100,1753177832339,-460.0,0.00016862,2]
[374004102,1753177832350,-460.0,0.00016862,2]
[374004105,1753177832361,-460.0,0.00016862,2]
[374004107,1753177832370,-460.0,0.00016862,2]
[374004109,1753177832380,-460.0,0.00016862,2]
[374004111,1753177832389,-460.0,0.00016862,2]
[374004113,1753177832399,-330.47591496,0.00016862,2]
[374004115,1753177832408,-547.55362094,0.00016862,2]
[374004117,1753177832417,-471.74103081,0.00016862,2]
[374004119,1753177832427,-460.0,0.00016862,2]
[374004121,1753177832436,-460.0,0.00016862,2]
[374004123,1753177832446,-460.0,0.00016862,2]
[374004125,1753177832455,-460.0,0.00016862,2]
[374004126,1753177832465,-460.0,0.00016862,2]
[374004128,1753177832474,-460.0,0.00016862,2]
[374004130,1753177832483,-460.0,0.00016862,2]
[374004132,1753177832493,-460.0,0.00016862,2]
[374004134,1753177832502,-460.0,0.00016862,2]
[374004136,1753177832511,-541.84698452,0.00016862,2]
[374004138,1753177832522,-460.0,0.00016862,2]
[374004140,1753177832531,-460.0,0.00016862,2]
[374004142,1753177832540,-460.0,0.00016862,2]